Cogmind - Beta 14 X2 @@@ ROGUE MODE // 2024.08.02 @ 21:23:04 Player: Some Pennies Result: Destroyed by as-54730 with Assembled Rifle Performance ------------- Evolutions (0) 0 Regions Visited (2) 400 Robots Destroyed (4) 20 Value Destroyed (27) 27 Prototype IDs (0) 0 Alien Tech Used (0) 0 Bonus (0) 0 TOTAL SCORE: 447 Bonus ------- None Cogmind --------- Core Integrity 0/250 Matter 259/300 Energy 64/100 System Corruption 2% Temperature Cool (0) Movement Core (50) Location -10/Mines Parts ------- > --- POWER (1) -------- (None) > --- PROPULSION (2) --- (None) > --- UTILITY (2) ------ (None) > --- WEAPON (2) ------- (None) > --- INVENTORY (5) ---- High-capacity Storage Unit Mining Laser Peak State ------------ > --- POWER ------------ Ion Engine > --- PROPULSION ------- Light Treads Light Treads > --- UTILITY ---------- Small Storage Unit Seismic Detector > --- WEAPON ----------- Medium Laser Small Laser > --- INVENTORY -------- EM Pulse Gun [Rating: 7] Favorites ----------- Power Ion Engine Engine Ion Engine Propulsion Light Treads Treads Light Treads Utility Small Storage Unit Device Seismic Detector Storage Small Storage Unit Weapon Small Laser Energy Gun Small Laser Launcher Grenade Launcher Build | -11 -10 -10 ------- Run | Yrd Mat Min Slots Evolved . | . . . Power . | . . . Propulsion . | . . . Utility . | . . . Weapon . | . . . Parts Attached 10 | 7 . 3 Power 1 | 1 . . Engine 1 | 1 . . Core . | . . . Reactor . | . . . Propulsion 2 | 2 . . Treads 2 | 2 . . Leg . | . . . Wheel . | . . . Hover . | . . . Flight . | . . . Utility 2 | 2 . . Device 1 | 1 . . Storage 1 | 1 . . Processor . | . . . Hackware . | . . . Protection . | . . . Artifact . | . . . Weapon 5 | 2 . 3 Energy Gun 4 | 2 . 2 Energy Cannon . | . . . Ballistic Gun . | . . . Ballistic Cannon . | . . . Launcher 1 | . . 1 Special Weapon . | . . . Impact Weapon . | . . . Slashing Weapon . | . . . Piercing Weapon . | . . . Special Melee Weapon . | . . . Unidentified Prototypes . | . . . Parts Lost 3 | . . 3 Power . | . . . Propulsion 1 | . . 1 Utility . | . . . Weapon 2 | . . 2 Highest Loss Streak 2 | . . 2 To Critical Strikes . | . . . Average Slot Usage (%) 89 | . 100 33 Engine 12 | . 14 4 Treads 25 | . 28 9 Device 12 | . 14 4 Storage 12 | . 14 4 Energy Gun 24 | . 28 7 Naked Turns 35 | . . 35 Heaviest Build 14 | 14 14 14 Greatest Support 40 | 40 40 40 Greatest Overweight (x) 2 | 2 . . Average Overweight (x) . | . . . Largest Inventory Capacity 8 | 8 8 8 Average Capacity 7 | 7 8 5 Most Carried 4 | 2 4 4 Average Carried 2 | 1 3 3 Final Capacity 8 | 8 8 5 Final Carried 4 | 2 4 2 Class Distribution -------------------- 100% | Mutant Dominant Class ---------------- Mutant | -10/Materials Mutant | -10/Mines Resources | -11 -10 -10 ----------- Run | Yrd Mat Min Matter Collected 274 | 260 10 4 Remotely . | . . . Salvage Created 195 | 154 . 41 Parts 9 | 9 . . Haulers Intercepted . | . . . Recyclers Shooed . | . . . Parts Field Recycled . | . . . Retrieved Matter . | . . . Parts Self-Destructed . | . . . Prevented . | . . . Kills | -11 -10 -10 ------- Run | Yrd Mat Min Combat Hostiles Destroyed 10 | . . 10 AOE 10 | . . 10 Classes Destroyed 3 | 2 . 1 Tunneler 3 | 3 . . Recycler 1 | 1 . . Assembled 10 | . . 10 Best Kill Streak 10 | 2 . 10 Combat Bots Only 10 | . . 10 Max Kills in Single Turn 5 | 1 . 5 Gunslinging . | . . . Exploded 5 | . . 5 Melee . | . . . Uniques/NPCs Destroyed . | . . . Combat | -11 -10 -10 -------- Run | Yrd Mat Min Hostile Shots Fired 57 | . . 57 Missed 13 | . . 13 Damage Taken 743 | . . 743 Core 252 | . . 252 Absorbed by Shields . | . . . Core Remaining (%) 100 | 100 . . Volleys Fired 18 | 8 4 6 Largest 2 | 2 2 2 Hottest 90 | 90 90 90 Shots Fired 33 | 16 8 9 Gun 30 | 16 8 6 Cannon . | . . . Launcher 3 | . . 3 Special . | . . . Kinetic . | . . . Thermal 29 | 16 8 5 Explosive 3 | . . 3 Electromagnetic 1 | . . 1 Robot Hit Streak 5 | 5 1 3 Robot Miss Streak 2 | 1 1 2 Penetration Max . | . . . Secondary Targets . | . . . Shots Hit Robots 19 | 10 4 5 Core Hits 31 | 5 2 24 Critical Kills . | . . . Critical Parts Destroyed . | . . . Critical Strikes 1 | 1 . . Burn 1 | 1 . . Melee Attacks . | . . . Impact . | . . . Slashing . | . . . Piercing . | . . . Sneak Attacks . | . . . Combat Hostiles . | . . . Follow-up Attacks . | . . . Damage Inflicted 798 | 115 42 641 Guns 194 | 115 42 37 Cannons . | . . . Explosions 601 | . . 601 Melee . | . . . Ramming 3 | . . 3 Kinetic . | . . . Thermal 182 | 115 42 25 Explosive 601 | . . 601 Electromagnetic 12 | . . 12 Impact . | . . . Slashing . | . . . Piercing . | . . . Highest Corruption 2 | . . 2 Average Corruption 2 | . . 2 Corruption Purged . | . . . Corruption Blocked . | . . . Overload Shots . | . . . Overflow Damage 19 | . . 19 Projectiles . | . . . Explosions 19 | . . 19 Melee . | . . . Knockbacks . | . . . Impact . | . . . Kinetic . | . . . Secondary . | . . . Self-Inflicted Damage 101 | . . 101 Shots 3 | . . 3 Rammed 1 | . . 1 Targets Rammed 1 | . . 1 Kicked . | . . . Crushed . | . . . Highest Temperature 196 | 90 60 196 Average Temperature 60 | 36 30 104 Received Heat Transfer 407 | . . 407 Siege Activations . | . . . Robots Corrupted . | . . . Combat Hostiles . | . . . Parts Fried . | . . . Impact Corruptions . | . . . Robots Melted . | . . . Combat Hostiles . | . . . Parts Melted . | . . . Heat Transferred 558 | 396 100 62 Parts Sabotaged . | . . . Parts Stolen . | . . . Parts Stripped . | . . . Power Chain Reactions . | . . . Alert | -11 -10 -10 ------- Run | Yrd Mat Min Peak Influence 48 | 20 48 36 Initial 18 | . 13 18 Average 18 | 9 21 17 Maximum Alert Level . | . . . Low Security (%) 100 | 100 100 100 Level 1 . | . . . Level 2 . | . . . Level 3 . | . . . Level 4 . | . . . Level 5 . | . . . High Security . | . . . Max Security . | . . . Squads Dispatched . | . . . Investigation . | . . . Extermination . | . . . Reinforcement . | . . . Assault . | . . . Garrison . | . . . Intercept . | . . . Searches Triggered . | . . . Construction Impeded . | . . . Haulers Reinforced . | . . . Active Scanning Responses . | . . . Cargo Convoy Interrupts . | . . . Stealth | -11 -10 -10 --------- Run | Yrd Mat Min Distress Signals 1 | . 1 . Communications Jammed . | . . . Distress Signals . | . . . Times Spotted 32 | . 7 25 Peak Tracking Total 22 | . 5 22 Tactical Retreats 2 | . . 2 Traps | -11 -10 -10 ------- Run | Yrd Mat Min Traps Triggered . | . . . Indirectly . | . . . Trap Hack Attempts . | . . . Triggered . | . . . Disarmed . | . . . Reprogrammed . | . . . Reused . | . . . Traps Extracted . | . . . Installed . | . . . Triggered . | . . . Machines | -11 -10 -10 ---------- Run | Yrd Mat Min Machines Disabled . | . . . Max in Single Turn . | . . . Machines Repaired . | . . . Machines Dismantled . | . . . Machines Sabotaged . | . . . Overloaded Fab Kills . | . . . Hacking | -11 -10 -10 --------- Run | Yrd Mat Min Machines Accessed 2 | . 2 . Terminals 2 | . 2 . Fabricators . | . . . Repair Stations . | . . . Recycling Units . | . . . Scanalyzers . | . . . Garrison Access . | . . . Total Hacks 5 | . 5 . Successful 4 | . 4 . Failed 1 | . 1 . Catastrophic . | . . . Database Lockouts . | . . . Manual 2 | . 2 . Terminals 5 | . 5 . Fabricators . | . . . Repair Stations . | . . . Recycling Units . | . . . Scanalyzers . | . . . Garrison Access . | . . . Terminal Hacks 4 | . 4 . Robot Analysis 1 | . 1 . Emergency Access Points 1 | . 1 . Locate Traps 2 | . 2 . Fabricator Hacks . | . . . Repair Station Hacks . | . . . Recycling Unit Hacks . | . . . Scanalyzer . | . . . Garrison Access Hacks . | . . . Unauthorized Hacks . | . . . Terminals . | . . . Fabricators . | . . . Repair Stations . | . . . Recycling Units . | . . . Scanalyzers . | . . . Garrison Access . | . . . Data Cores Recovered . | . . . Used . | . . . Hacking Detections 2 | . 2 . Full Trace Events . | . . . Feedback Events . | . . . Feedback Blocked . | . . . Robot Schematics Acquired . | . . . Robots Built . | . . . Authchips . | . . . Time . | . . . Total Robot Build Rating . | . . . Part Schematics Acquired . | . . . Parts Built . | . . . Authchips . | . . . Time . | . . . Total Part Build Rating . | . . . Parts Repaired . | . . . Time . | . . . Parts Recycled . | . . . Recycled Matter . | . . . Retrieved Matter . | . . . Retrieved Components . | . . . Parts Scanalyzed . | . . . Part Schematics Acquired . | . . . Parts Damaged . | . . . Bothacking | -11 -10 -10 ------------ Run | Yrd Mat Min Used RIF Installer . | . . . Robots Hacked . | . . . Non-combat . | . . . Combat . | . . . Robot Hacks Applied . | . . . Relay Couplers Released . | . . . Fabnet Peak Effective % . | . . . Robots Rewired . | . . . Allies Hacked . | . . . Hacks Repelled . | . . . Allies | -11 -10 -10 -------- Run | Yrd Mat Min Total Allies . | . . . Largest Group . | . . . Highest-Rated Group . | . . . Highest-Rated Ally . | . . . Total Orders . | . . . Ally Attacks . | . . . Total Damage . | . . . Kills . | . . . Allies Corrupted . | . . . Allies Melted . | . . . Intel | -11 -10 -10 ------- Run | Yrd Mat Min Robot Analysis Total 1 | . 1 . Derelict Logs Recovered . | . . . Drone Launches . | . . . Drone Recoveries . | . . . Exploration | -11 -10 -10 ------------- Run | Yrd Mat Min Turns Passed 497 | 99 337 61 Spaces Moved 321 | 44 200 77 Core 86 | 11 . 75 Treads 235 | 33 200 2 Legs . | . . . Wheels . | . . . Hover . | . . . Flight . | . . . Fastest Speed 50 | 50 160 50 Average Speed 132 | 143 160 52 Slowest Speed 160 | 160 160 160 Overloaded Moves . | . . . Propulsion Burnouts . | . . . Robots Hopped . | . . . Cave-ins Triggered . | . . . Exploration Rate (%) 26 | 3 42 33 Regions Visited 2 Branch Regions 1 Pre-discovered Areas . | . . . Known Exits Taken . | . . . Unknown Exits Taken 2 | 1 1 . Scrap Searched . | . . . Spaces Dug . | . . . Terrain Destroyed 24 | . . 24 Melee . | . . . Projectile . | . . . AOE 24 | . . 24 Terrain Rammed . | . . . Walls Destroyed . | . . . Machines Disabled . | . . . Actions | -11 -10 -10 --------- Run | Yrd Mat Min Total 356 | 60 209 87 Wait 4 | . 4 . Move 319 | 43 199 77 Hop . | . . . Pick Up 4 | 2 2 . Fast Attach 7 | 7 . . Attach 2 | . . 2 Detach . | . . . Swap 1 | . . 1 Drop . | . . . Fire 18 | 8 4 6 Melee . | . . . Ram . | . . . Kick . | . . . Crush 1 | . . 1 Escape Stasis . | . . . Rewire . | . . . Trap . | . . . Miscellaneous . | . . . Route ------- -11/Scrapyard -10/Materials (discovered 2 exits: [*Mat] / [*Min]) -10/Mines History --------- Turn | Location | Event 14 | -11/Scrapyard | Discovered new exit (range 14) 100 | -11/Scrapyard | Entered Materials 313 | -10/Materials | Build established: Mutant 333 | -10/Materials | Discovered new exit (range 15) 429 | -10/Materials | Discovered new exit (range 6) 437 | -10/Materials | Entered Mines 438 | -10/Mines | Assembled infested the area 456 | -10/Mines | Released all parts (5) 462 | -10/Mines | Core integrity fell below 50% 475 | -10/Mines | Destroyed 10 combat bots 497 | -10/Mines | Core integrity fell below 20% 498 | -10/Mines | Destroyed by as-54730 with Assembled Rifle Last Messages --------------- 00452_ as-78626 destroyed. 00452_ Destroyed Asb. Hover Unit. 00452_ as-45165 destroyed. 00452_ as-16820 destroyed. 00454_ as-51803 destroyed. 00454_ as-80101 destroyed. 00454_ as-08792 destroyed. 00454_ as-77137 destroyed. 00454_ as-44764 destroyed. 00455_ Grenade Launcher destroyed. 00456_ G-47 Trooper heat damages Imp. Heat Sink. 00456_ Lgt. Treads destroyed. 00456_ Released Sml. Storage Unit. 00456_ Released Sml. Laser. 00456_ Released Lgt. Treads. 00456_ Released Ion Engine. 00456_ Released Seismic Detector. 00495_ Med. Laser destroyed. 00495_ System corrupted by crushing effect (+2). 00498_ EM Pulse Gun severed. Map ----- +----------------------------------------------------+ | | | | | | | | | | | | | | | | | | | | | ???????????????????????????????????? | | ???????????????????????????????????? | | ???????????????????????????????????? | | ???????????????????????????????????? | | ???????????????????????????????????? | | ???????????????????????????????????? | | ???????????????????????????????????? | | ???????????????????????????????????? | | ???????????????????????????????????? | | #??????????????????????????????????? | | #?????????????????????????###?????? | | #???????????????????????## ##????? | | #####?????????????????## #????? | | ##???????????????## #????? | | #??????## ?????## #????? | | #??????# ????## @[ #????? | | # ##?????# ????# aa #????? | | ?# #?????# ???# aa #????? | | ?# #????## ???# a ##????? | | ?# #????# ???# ####?????? | | ?# ##???# #?## ##????????? | | ?# ## ####?# ## ##?????????? | | ?## #### ##?# #??????????? | | ?## #??# #?### ##??????????? | | ## #??# #???## ##???????????? | | # ##??## #????# #????????????? | | #????## ##????# ##???????????? | | #?????# #?????# ##??????????? | | #?????# #????## #??????????? | | ##????# #???## #??????????? | | ##???# ##### ##?????????? | | ###?# #?????????? | | ### ####### #???? | | ## #?????## #??? | | ## #??????# #?? | | # $#?????? #?? | | ### ## ###?????? ## ##?? | | ### ### ????????? ##?# #??? | | # ##?# ?????????#????# #??? | | # #??# ???????????????# #?? | +----------------------------------------------------+ Best States ------------- Heat Dissipation 25 Energy Generation 10 Energy Capacity 250 Matter Stores 300 Matter Capacity 300 Sight Range 16 Terrain Scan Density 10 Evasion (%) 50 Recoil Reduction 2 Item Schematics ----------------- None Robot Schematics ------------------ None Fabricated ------------ Nothing Alien Tech Used ----------------- None Achievements -------------- None Challenges ------------ None Game ------ Seed RagnarokDefensePick Manual? 0 Play Time 00:06:29 Cumulative 205.1 hours Start 2024.08.02 @ 14:28:39 End 2024.08.02 @ 21:23:04 Sessions 2 Manual Loads 0 Difficulty Rogue Special Mode None Game No. 172 Rogue 167 Adventurer 5 Explorer 0 Win Type - Total 4 Types 2/0/2/0/0/0/0/0/0 Lore% 62 Gallery% 77 Achievement% 60 Wizard Run 0 Options --------- Layout 2 ASCII 0 Keyboard 0 Movement Mouse Keybinds 0 Fullscreen 2 Font 24/Smallcaps Map View 50x44 Zoom Use 0% Tactical HUD 1 Map Filters NONE Filters NONE Steam 1 RUN: 76dd57a2-0a77-46f7-abc1-a394cba680b7